fUSD/lending_fUSD_20250804
["ID","MTS","AMOUNT","RATE_DAILY","PERIOD"]
[377267220,1754309438918,-500.0,0.00046301,120]
[377267222,1754309438927,-500.0,0.00046301,120]
[377267224,1754309438936,-500.0,0.00046301,120]
[377267225,1754309438946,-500.0,0.00046301,120]
[377267227,1754309438960,-500.0,0.00046301,120]
[377267230,1754309438970,-500.0,0.00046301,120]
[377267231,1754309438980,-500.0,0.00046301,120]
[377267234,1754309438990,-500.0,0.00046301,120]
[377267236,1754309438999,-500.0,0.00046301,120]
[377267237,1754309439009,-500.0,0.00046301,120]
[377267240,1754309439018,-500.0,0.00046301,120]
[377267241,1754309439028,-500.0,0.00046301,120]
[377267243,1754309439037,-500.0,0.00046301,120]
[377267246,1754309439048,-500.0,0.00046301,120]
[377267248,1754309439058,-500.0,0.00046301,120]
[377267250,1754309439069,-500.0,0.00046301,120]
[377267252,1754309439078,-500.0,0.00046301,120]
[377267254,1754309439088,-500.0,0.00046301,120]
[377267256,1754309439097,-500.0,0.00046301,120]
[377267258,1754309439106,-500.0,0.00046301,120]
[377267260,1754309439115,-500.0,0.00046301,120]
[377267262,1754309439125,-500.0,0.00046301,120]
[377267264,1754309439135,-500.0,0.00046301,120]
[377267266,1754309439145,-500.0,0.00046301,120]
[377267268,1754309439154,-500.0,0.00046301,120]
[377267270,1754309439164,-500.0,0.00046301,120]
[377267272,1754309439173,-500.0,0.00046301,120]
[377267274,1754309439182,-500.0,0.00046301,120]
[377267276,1754309439191,-500.0,0.00046301,120]
[377267278,1754309439203,-500.0,0.00046301,120]
[377267280,1754309439212,-500.0,0.00046301,120]
[377267282,1754309439222,-500.0,0.00046301,120]
[377267284,1754309439231,-500.0,0.00046301,120]
[377267286,1754309439241,-500.0,0.00046301,120]
[377267288,1754309439251,-500.0,0.00046301,120]
[377267290,1754309439260,-500.0,0.00046301,120]
[377267292,1754309439270,-500.0,0.00046301,120]
[377267294,1754309439279,-500.0,0.00046301,120]
[377267296,1754309439289,-500.0,0.00046301,120]
[377267298,1754309439299,-500.0,0.00046301,120]
[377267300,1754309439309,-500.0,0.00046301,120]
[377267302,1754309439318,-500.0,0.00046301,120]
[377267304,1754309439328,-500.0,0.00046301,120]
[377267306,1754309439338,-500.0,0.00046301,120]
[377267308,1754309439348,-500.0,0.00046301,120]
[377267310,1754309439358,-500.0,0.00046301,120]
[377267312,1754309439367,-500.0,0.00046301,120]
[377267314,1754309439377,-500.0,0.00046301,120]
[377267316,1754309439386,-500.0,0.00046301,120]
[377267318,1754309439395,-500.0,0.00046301,120]
[377267320,1754309439405,-500.0,0.00046301,120]
[377267322,1754309439415,-500.0,0.00046301,120]
[377267324,1754309439425,-500.0,0.00046301,120]
[377267326,1754309439434,-500.0,0.00046301,120]
[377267328,1754309439443,-500.0,0.00046301,120]
[377267330,1754309439454,-500.0,0.00046301,120]
[377267332,1754309439464,-500.0,0.00046301,120]
[377267334,1754309439474,-500.0,0.00046301,120]
[377267336,1754309439484,-500.0,0.00046301,120]
[377267338,1754309439493,-500.0,0.00046301,120]
[377267340,1754309439503,-500.0,0.00046301,120]
[377267342,1754309439514,-500.0,0.00046301,120]
[377267344,1754309439523,-500.0,0.00046301,120]
[377267346,1754309439533,-500.0,0.00046301,120]
[377267348,1754309439542,-500.0,0.00046301,120]
[377267350,1754309439552,-500.0,0.00046301,120]
[377267352,1754309439562,-500.0,0.00046301,120]
[377267355,1754309439572,-500.0,0.00046301,120]
[377267357,1754309439581,-500.0,0.00046301,120]
[377267358,1754309439590,-500.0,0.00046301,120]
[377267360,1754309439600,-500.0,0.00046301,120]
[377267362,1754309439610,-500.0,0.00046301,120]
[377267364,1754309439619,-500.0,0.00046301,120]
[377267366,1754309439629,-500.0,0.00046301,120]
[377267368,1754309439639,-500.0,0.00046301,120]
[377267371,1754309439649,-500.0,0.00046301,120]
[377267373,1754309439659,-500.0,0.00046301,120]
[377267375,1754309439669,-500.0,0.00046301,120]
[377267377,1754309439678,-500.0,0.00046301,120]
[377267379,1754309439688,-500.0,0.00046301,120]
[377267381,1754309439697,-500.0,0.00046301,120]
[377267383,1754309439707,-500.0,0.00046301,120]
[377267385,1754309439718,-500.0,0.00046301,120]
[377267387,1754309439727,-500.0,0.00046301,120]
[377267389,1754309439736,-500.0,0.00046301,120]
[377267391,1754309439746,-500.0,0.00046301,120]
[377267393,1754309439756,-500.0,0.00046301,120]
[377267395,1754309439765,-500.0,0.00046301,120]
[377267397,1754309439775,-500.0,0.00046301,120]
[377267399,1754309439785,-500.0,0.00046301,120]
[377267401,1754309439794,-500.0,0.00046301,120]
[377267403,1754309439804,-847.0,0.00046301,120]
[377267405,1754309439814,-441.28308254,0.00046373,2]
[377267407,1754309439823,-150.0,0.00046455,120]
[377267409,1754309439833,-150.0,0.00046564,2]
[377267412,1754309439844,-475.6339776,0.00046564,2]
[377267414,1754309439853,-210.0,0.00046711,120]
[377267416,1754309439862,-1375.71146893,0.00046729,10]
[377267418,1754309439872,-173.23818763,0.00046899,28]
[377267420,1754309439885,-3095.23987171,0.00046999,15]
[377267422,1754309439894,-888.0,0.000471,3]
[377267424,1754309439904,-152.85,0.00047149,120]
[377267426,1754309439915,-999.0,0.00047397,120]
[377267428,1754309439925,-590.0,0.000474,2]
[377267430,1754309439935,-505.0,0.00047635,10]
[377267432,1754309439944,-150.0,0.0004767,2]
[377267434,1754309439956,-507.84,0.00047682,120]
[377267436,1754309439966,-1433.0,0.000477,2]
[377267462,1754309439976,-184.9,0.00047702,120]
[377267470,1754309440275,-150.0,0.00047824,2]
[377267472,1754309440286,-809.0,0.00047824,2]
[377267474,1754309440296,-2023.0,0.00047824,2]
[377267476,1754309440306,-1651.0,0.00047824,2]
[377267478,1754309440316,-636.0,0.00047918,2]
[377267480,1754309440327,-17660.9438547,0.00047989,4]
[377267482,1754309440337,-1515.16642837,0.00047999,120]
[377267484,1754309440346,-670.21,0.00048,2]
[377267486,1754309440356,-500.0,0.00048239,120]
[377267488,1754309440366,-150.0,0.000485,2]
[377267490,1754309440375,-505.0,0.00048518,10]
[377267492,1754309440384,-332.87,0.00048593,14]
[377267494,1754309440394,-527.10746413,0.00048666,2]
[377267496,1754309440403,-7662.05045708,0.00048679,120]
[377267498,1754309440412,-525.0,0.000487,2]
[377267500,1754309440421,-3095.23987171,0.00048724,15]
[377267502,1754309440431,-671.80363076,0.00048831,2]
[377267504,1754309440441,-158.91,0.0004894,14]
[377267506,1754309440453,-816.49979738,0.00048997,2]
[377267508,1754309440462,-150.0,0.0004904,2]
[377267510,1754309440472,-961.19596401,0.00049162,2]
[377267512,1754309440482,-173.23818761,0.00049165,28]
[377267514,1754309440492,-999.0,0.00049178,120]
[377267516,1754309440501,-150.0,0.00049288,120]
[377267518,1754309440511,-17660.9438547,0.00049295,4]
[377267520,1754309440520,-1600.0,0.00049305,120]
[377267521,1754309440531,-1000.0,0.00049305,2]
[377267522,1754309440541,-600.0,0.00049305,18]
[377267523,1754309440551,-600.0,0.00049305,18]
[377267524,1754309440561,-600.0,0.00049305,18]
[377267525,1754309440571,-600.0,0.00049305,18]
[377267526,1754309440580,-600.0,0.00049305,18]
[377267527,1754309440590,-600.0,0.00049305,18]
[377267528,1754309440600,-600.0,0.00049305,18]
[377267529,1754309440609,-600.0,0.00049305,18]
[377267530,1754309440619,-600.0,0.00049305,18]
[377267531,1754309440628,-600.0,0.00049305,18]
[377267532,1754309440637,-600.0,0.00049305,38]
[377267534,1754309440647,-200.0,0.00049315,120]
[377267536,1754309440656,-1105.89213063,0.00049328,2]
[377267537,1754309440665,-1776.0,0.0004934,3]
[377267539,1754309440674,-184.9,0.00049347,120]
[377267541,1754309440684,-505.0,0.00049401,10]
[377267543,1754309440693,-507.84,0.00049412,120]
[377267545,1754309440704,-158.89,0.0004944,14]
[377267547,1754309440713,-1720.0,0.0004947,30]
[377267549,1754309440723,-833.5,0.00049473,60]
[377267551,1754309440732,-1000.0,0.00049478,120]
[377267554,1754309440742,-1250.58829726,0.00049493,2]
[377267556,1754309440752,-153.0,0.000495,7]
[377267558,1754309440761,-500.0,0.00049545,120]
[377267560,1754309440771,-888.0,0.00049568,3]
[377267562,1754309440781,-1395.28446388,0.00049659,2]
[377267564,1754309440791,-515.0,0.0004973,2]
[377267566,1754309440800,-200.0,0.00049747,120]
[377267568,1754309440809,-1000.0,0.0004975,2]
[377267570,1754309440818,-1000.0,0.0004975,2]
[377267572,1754309440829,-1000.0,0.0004975,2]
[377267574,1754309440839,-1000.0,0.0004975,2]
[377267576,1754309440848,-1000.0,0.0004975,2]
[377267578,1754309440858,-1000.0,0.0004975,2]
[377267580,1754309440867,-1000.0,0.0004975,2]
[377267582,1754309440879,-1126.3912,0.0004975,2]
[377267584,1754309440891,-248.79406,0.0004975,48]
[377267586,1754309440900,-2801.26327628,0.00049763,21]
[377267588,1754309440910,-888.0,0.00049815,60]
[377267590,1754309440920,-1539.9806305,0.00049824,2]
[377267592,1754309440929,-17660.9438547,0.00049843,4]
[377267594,1754309440938,-500.0,0.00049863,120]
[377267596,1754309440948,-500.0,0.00049863,120]
[377267598,1754309440958,-500.0,0.00049863,120]
[377267600,1754309440968,-594.0,0.00049863,120]
[377267602,1754309440977,-500.0,0.00049863,120]
[377267604,1754309440986,-477.0,0.00049863,120]
[377267606,1754309440995,-1430.0,0.00049863,120]
[377267608,1754309441005,-150.0,0.00049863,120]
[377267610,1754309441014,-500.0,0.00049863,120]
[377267612,1754309441023,-500.0,0.00049863,120]
[377267614,1754309441033,-500.0,0.00049863,120]
[377267616,1754309441043,-500.0,0.00049863,120]
[377267618,1754309441052,-150.0,0.00049863,120]
[377267620,1754309441062,-150.15980536,0.00049863,120]
[377267622,1754309441071,-500.0,0.00049863,120]
[377267624,1754309441080,-150.0,0.00049863,120]
[377267626,1754309441089,-150.0,0.00049863,120]
[377267628,1754309441098,-150.0,0.00049863,120]
[377267630,1754309441108,-500.0,0.00049863,120]
[377267632,1754309441118,-156.80895068,0.00049863,120]
[377267634,1754309441128,-500.0,0.00049863,120]
[377267636,1754309441137,-150.0,0.00049863,120]
[377267638,1754309441146,-500.0,0.00049863,120]
[377267640,1754309441156,-500.0,0.00049863,120]
[377267642,1754309441165,-500.0,0.00049863,120]
[377267644,1754309441174,-550.0,0.00049863,120]
[377267646,1754309441183,-500.0,0.00049863,120]
[377267648,1754309441193,-156.69720092,0.00049863,120]
[377267650,1754309441203,-150.0,0.00049863,120]
[377267652,1754309441213,-500.0,0.00049863,120]
[377267654,1754309441222,-620.0,0.00049863,120]
[377267656,1754309441232,-539.0,0.00049863,120]
[377267658,1754309441241,-996.0,0.00049863,120]
[377267660,1754309441250,-150.0,0.00049863,120]
[377267662,1754309441261,-500.0,0.00049863,120]
[377267664,1754309441270,-500.0,0.00049863,120]
[377267666,1754309441279,-150.0,0.00049863,2]
[377267668,1754309441289,-500.0,0.00049863,120]
[377267670,1754309441298,-500.0,0.00049863,120]
[377267672,1754309441309,-150.0,0.00049863,2]
[377267674,1754309441319,-500.0,0.00049863,120]
[377267676,1754309441328,-150.0,0.00049863,2]
[377267678,1754309441338,-5000.0,0.0004989,120]
[377267680,1754309441347,-88888.0,0.00049899,120]
[377267682,1754309441357,-723.05020254,0.000499,38]
[377267684,1754309441367,-350.0,0.0004995,2]
[377267686,1754309441377,-17660.9438547,0.00049963,4]
[377267688,1754309441386,-52982.8315641,0.0004997,4]
[377267690,1754309441395,-1512.59041025,0.00049971,120]
[377267692,1754309441405,-1000.0,0.00049972,120]
[377267694,1754309441415,-1000.0,0.00049973,120]
[377267696,1754309441425,-35321.8877094,0.00049979,4]
[377267698,1754309441434,-1720.0,0.0004998,30]
[377267700,1754309441444,-2630.20674089,0.0004998,120]
[377267702,1754309441454,-158948.494692,0.0004998,4]
[377267704,1754309441465,-157.84222232,0.00049989,26]
[377267706,1754309441475,-1684.67679712,0.0004999,2]
[377267708,1754309441484,-374.56250091,0.0004999,7]
[377267710,1754309441494,-607.24882029,0.00049999,120]
[377267712,1754309441504,-500.0,0.00049999,120]
[377267714,1754309441515,-500.0,0.00049999,120]
[377267716,1754309441524,-500.0,0.00049999,120]
[377267718,1754309441533,-500.0,0.00049999,120]
[377267720,1754309441543,-500.0,0.00049999,120]
[377267722,1754309441553,-500.0,0.00049999,120]
[377267724,1754309441563,-500.0,0.00049999,120]
[377267726,1754309441572,-500.0,0.00049999,120]
[377267728,1754309441581,-500.0,0.00049999,120]
[377267730,1754309441591,-500.0,0.00049999,120]
[377267732,1754309441600,-200.0,0.00049999,120]
[377267734,1754309441612,-500.0,0.00049999,120]
[377267736,1754309441622,-239.16088908,0.00049999,120]
[377267738,1754309441631,-500.0,0.00049999,120]
[377267740,1754309441641,-500.0,0.00049999,120]
[377267743,1754309441651,-500.0,0.00049999,120]
[377267745,1754309441661,-500.0,0.00049999,120]
[377267747,1754309441670,-500.0,0.00049999,120]
[377267749,1754309441681,-500.0,0.00049999,120]
[377267751,1754309441694,-500.0,0.00049999,120]
[377267753,1754309441704,-500.0,0.00049999,120]
[377267755,1754309441714,-500.0,0.00049999,120]
[377267757,1754309441724,-500.0,0.00049999,120]
[377267759,1754309441734,-300.0,0.00049999,120]
[377267761,1754309441743,-300.0,0.00049999,120]
[377267763,1754309441752,-300.0,0.00049999,120]
[377267765,1754309441762,-151.0,0.00049999,120]
[377267767,1754309441772,-300.0,0.00049999,120]
[377267769,1754309441781,-300.0,0.00049999,120]
[377267771,1754309441791,-300.0,0.00049999,120]
[377267773,1754309441800,-300.0,0.00049999,120]
[377267775,1754309441812,-300.0,0.00049999,120]
[377267777,1754309441822,-300.0,0.00049999,120]
[377267779,1754309441831,-300.0,0.00049999,120]
[377267781,1754309441841,-300.0,0.00049999,120]
[377267783,1754309441850,-300.0,0.00049999,120]
[377267785,1754309441860,-300.0,0.00049999,120]
[377267787,1754309441869,-300.0,0.00049999,120]
[377267789,1754309441883,-300.0,0.00049999,120]
[377267791,1754309441893,-300.0,0.00049999,120]
[377267793,1754309441903,-300.0,0.00049999,120]
[377267795,1754309441916,-151.0,0.00049999,120]
[377267797,1754309441929,-300.0,0.00049999,120]
[377267799,1754309441938,-156.587,0.00049999,120]
[377267801,1754309441948,-162.380719,0.00049999,120]
[377267803,1754309441959,-168.3888056,0.00049999,120]
[377267805,1754309441969,-174.61919141,0.00049999,120]
[377267808,1754309441978,-300.0,0.00049999,120]
[377267809,1754309441988,-181.08010149,0.00049999,120]
[377267811,1754309441997,-300.0,0.00049999,120]
[377267813,1754309442007,-151.0,0.00049999,120]
[377267816,1754309442017,-187.78006525,0.00049999,120]
[377267818,1754309442027,-151.0,0.00049999,120]
[377267820,1754309442037,-500.0,0.00049999,120]
[377267822,1754309442046,-194.72792766,0.00049999,120]
[377267824,1754309442056,-151.0,0.00049999,120]
[377267826,1754309442066,-526.22250005,0.00049999,120]
[377267828,1754309442076,-202.6771522,0.00049999,120]
[377267829,1754309442085,-151.0,0.00049999,120]
[377267832,1754309442096,-151.0,0.00049999,120]
[377267834,1754309442107,-151.0,0.00049999,120]
[377267835,1754309442117,-151.0,0.00049999,120]
[377267838,1754309442126,-151.0,0.00049999,120]
[377267840,1754309442136,-151.0,0.00049999,120]
[377267842,1754309442146,-151.0,0.00049999,120]
[377267844,1754309442157,-151.0,0.00049999,120]
[377267846,1754309442167,-151.0,0.00049999,120]
[377267848,1754309442177,-168.74495425,0.00049999,120]
[377267850,1754309442186,-300.0,0.00049999,120]
[377267851,1754309442197,-311.1,0.00049999,120]
[377267853,1754309442214,-843.3796976,0.00049999,120]
[377267855,1754309442224,-500.0,0.00049999,120]
[377267857,1754309442234,-322.6107,0.00049999,120]
[377267859,1754309442243,-500.0,0.00049999,120]
[377267860,1754309442253,-334.5472959,0.00049999,120]
[377267862,1754309442263,-500.0,0.00049999,120]
[377267864,1754309442273,-346.92554585,0.00049999,120]
[377267866,1754309442282,-359.76179104,0.00049999,120]
[377267868,1754309442291,-500.0,0.00049999,120]
[377267870,1754309442301,-373.07297731,0.00049999,120]
[377267872,1754309442310,-500.0,0.00049999,120]
[377267874,1754309442320,-386.87667747,0.00049999,120]
[377267876,1754309442330,-500.0,0.00049999,120]
[377267878,1754309442344,-401.19111454,0.00049999,120]
[377267879,1754309442354,-500.0,0.00049999,120]
[377267880,1754309442364,-416.03518578,0.00049999,120]
[377267881,1754309442374,-500.0,0.00049999,120]
[377267882,1754309442384,-500.0,0.00049999,120]
[377267883,1754309442393,-431.42848765,0.00049999,120]
[377267884,1754309442402,-447.3913417,0.00049999,120]
[377267885,1754309442412,-500.0,0.00049999,120]
[377267886,1754309442422,-500.0,0.00049999,120]
[377267887,1754309442432,-170.50132154,0.00049999,120]
[377267888,1754309442441,-500.0,0.00049999,120]
[377267889,1754309442451,-500.0,0.00049999,120]
[377267890,1754309442461,-500.0,0.00049999,120]
[377267891,1754309442471,-500.0,0.00049999,120]
[377267892,1754309442481,-500.0,0.00049999,120]
[377267893,1754309442490,-500.0,0.00049999,120]
[377267894,1754309442500,-500.0,0.00049999,120]
[377267895,1754309442509,-500.0,0.00049999,120]
[377267896,1754309442523,-500.0,0.00049999,120]
[377267898,1754309442533,-600.0,0.00049999,120]
[377267900,1754309442542,-200.0,0.00049999,120]
[377267902,1754309442552,-600.0,0.00049999,120]
[377267904,1754309442562,-500.0,0.00049999,120]
[377267906,1754309442572,-207.4,0.00049999,120]
[377267908,1754309442581,-600.0,0.00049999,120]
[377267910,1754309442591,-500.0,0.00049999,120]
[377267912,1754309442601,-151.0,0.00049999,120]
[377267914,1754309442610,-215.0738,0.00049999,120]
[377267916,1754309442619,-500.0,0.00049999,120]
[377267918,1754309442629,-500.0,0.00049999,120]
[377267920,1754309442639,-600.0,0.00049999,120]
[377267922,1754309442648,-157.55548253,0.00049999,120]
[377267924,1754309442659,-223.0315306,0.00049999,120]
[377267926,1754309442668,-500.0,0.00049999,120]
[377267928,1754309442678,-500.0,0.00049999,120]
[377267930,1754309442688,-600.0,0.00049999,120]
[377267932,1754309442698,-231.28369723,0.00049999,120]
[377267934,1754309442709,-500.0,0.00049999,120]
[377267936,1754309442719,-160.0,0.00049999,120]
[377267938,1754309442729,-500.0,0.00049999,120]
[377267940,1754309442739,-239.84119403,0.00049999,120]
[377267943,1754309442750,-500.0,0.00049999,120]
[377267945,1754309442760,-160.0,0.00049999,120]
[377267947,1754309442770,-248.71531821,0.00049999,120]
[377267949,1754309442780,-500.0,0.00049999,120]
[377267951,1754309442791,-160.0,0.00049999,120]
[377267953,1754309442800,-257.91778498,0.00049999,120]
[377267955,1754309442810,-500.0,0.00049999,120]
[377267958,1754309442820,-160.0,0.00049999,120]
[377267960,1754309442830,-267.46074303,0.00049999,120]
[377267962,1754309442839,-500.0,0.00049999,120]
[377267964,1754309442849,-500.0,0.00049999,120]
[377267966,1754309442859,-160.0,0.00049999,120]
[377267968,1754309442869,-277.35679052,0.00049999,120]
[377267970,1754309442882,-500.0,0.00049999,120]
[377267972,1754309442892,-500.0,0.00049999,120]
[377267974,1754309442901,-160.0,0.00049999,120]
[377267977,1754309442911,-287.61899177,0.00049999,120]
[377267979,1754309442920,-500.0,0.00049999,120]
[377267981,1754309442930,-160.0,0.00049999,120]
[377267983,1754309442939,-298.26089446,0.00049999,120]
[377267985,1754309442949,-500.0,0.00049999,120]
[377267987,1754309442961,-160.0,0.00049999,120]
[377267989,1754309442971,-309.29654756,0.00049999,120]
[377267991,1754309442980,-500.0,0.00049999,120]
[377267993,1754309442989,-320.74051982,0.00049999,120]
[377267995,1754309442999,-160.0,0.00049999,120]
[377267997,1754309443008,-332.60791905,0.00049999,120]
[377267999,1754309443018,-160.0,0.00049999,120]
[377268001,1754309443033,-344.91441206,0.00049999,120]
[377268003,1754309443044,-357.6762453,0.00049999,120]
[377268004,1754309443053,-370.91026638,0.00049999,120]
[377268005,1754309443063,-500.0,0.00049999,120]
[377268006,1754309443073,-384.63394623,0.00049999,120]
[377268007,1754309443082,-500.0,0.00049999,120]
[377268008,1754309443092,-500.0,0.00049999,120]
[377268009,1754309443102,-398.86540225,0.00049999,120]
[377268010,1754309443111,-500.0,0.00049999,120]
[377268011,1754309443121,-151.0,0.00049999,120]
[377268012,1754309443130,-500.0,0.00049999,120]
[377268013,1754309443140,-500.0,0.00049999,120]
[377268014,1754309443149,-151.0,0.00049999,120]
[377268015,1754309443159,-500.0,0.00049999,120]
[377268016,1754309443168,-500.0,0.00049999,120]
[377268017,1754309443178,-151.0,0.00049999,120]
[377268018,1754309443187,-151.0,0.00049999,120]
[377268020,1754309443197,-500.0,0.00049999,120]
[377268022,1754309443207,-500.0,0.00049999,120]
[377268024,1754309443217,-151.0,0.00049999,120]
[377268026,1754309443227,-500.0,0.00049999,120]
[377268028,1754309443236,-300.0,0.00049999,120]
[377268029,1754309443246,-151.0,0.00049999,120]
[377268030,1754309443255,-500.0,0.00049999,120]
[377268031,1754309443265,-300.0,0.00049999,120]
[377268032,1754309443275,-151.0,0.00049999,120]
[377268034,1754309443284,-500.0,0.00049999,120]
[377268035,1754309443294,-300.0,0.00049999,120]
[377268036,1754309443303,-300.0,0.00049999,120]
[377268037,1754309443313,-151.0,0.00049999,120]
[377268038,1754309443322,-151.0,0.00049999,120]
[377268039,1754309443332,-500.0,0.00049999,120]
[377268040,1754309443341,-300.0,0.00049999,120]
[377268041,1754309443351,-500.0,0.00049999,120]
[377268042,1754309443361,-151.0,0.00049999,120]
[377268043,1754309443370,-500.0,0.00049999,120]
[377268044,1754309443379,-300.0,0.00049999,120]
[377268045,1754309443389,-151.0,0.00049999,120]
[377268046,1754309443399,-500.0,0.00049999,120]
[377268047,1754309443408,-151.0,0.00049999,120]
[377268048,1754309443418,-151.0,0.00049999,120]
[377268049,1754309443428,-300.0,0.00049999,120]
[377268050,1754309443437,-500.0,0.00049999,120]
[377268051,1754309443447,-500.0,0.00049999,120]
[377268052,1754309443459,-151.0,0.00049999,120]
[377268053,1754309443468,-500.0,0.00049999,120]
[377268054,1754309443478,-151.0,0.00049999,120]
[377268055,1754309443488,-300.0,0.00049999,120]
[377268056,1754309443498,-151.0,0.00049999,120]
[377268057,1754309443507,-151.0,0.00049999,120]
[377268058,1754309443517,-500.0,0.00049999,120]
[377268059,1754309443527,-151.0,0.00049999,120]
[377268060,1754309443536,-300.0,0.00049999,120]
[377268061,1754309443546,-150.0,0.00049999,30]
[377268062,1754309443555,-500.0,0.00049999,120]
[377268063,1754309443565,-151.0,0.00049999,120]
[377268064,1754309443575,-151.0,0.00049999,120]
[377268065,1754309443584,-300.0,0.00049999,120]
[377268066,1754309443594,-500.0,0.00049999,120]
[377268067,1754309443608,-151.0,0.00049999,120]
[377268068,1754309443618,-151.0,0.00049999,120]
[377268069,1754309443628,-151.0,0.00049999,120]
[377268070,1754309443638,-300.0,0.00049999,120]
[377268071,1754309443648,-151.0,0.00049999,120]
[377268072,1754309443658,-200.0,0.00049999,120]
[377268073,1754309443667,-151.0,0.00049999,120]
[377268074,1754309443677,-300.0,0.00049999,120]
[377268075,1754309443687,-300.0,0.00049999,120]
[377268076,1754309443696,-151.0,0.00049999,120]
[377268077,1754309443707,-300.0,0.00049999,120]
[377268078,1754309443717,-151.0,0.00049999,120]
[377268079,1754309443727,-171.2514499,0.00049999,120]
[377268080,1754309443737,-300.0,0.00049999,120]
[377268081,1754309443747,-500.0,0.00049999,120]
[377268082,1754309443757,-300.0,0.00049999,120]
[377268083,1754309443766,-300.0,0.00049999,120]
[377268084,1754309443776,-300.0,0.00049999,120]
[377268085,1754309443786,-151.0,0.00049999,120]
[377268086,1754309443795,-300.0,0.00049999,120]
[377268087,1754309443805,-151.0,0.00049999,120]
[377268088,1754309443814,-300.0,0.00049999,120]
[377268089,1754309443824,-500.0,0.00049999,120]
[377268090,1754309443834,-844.0962476,0.0005,120]
[377268091,1754309443844,-341877.55616669,0.0005,120]
[377268092,1754309443854,-1000.0,0.0005,120]
[377268093,1754309443863,-3000.0,0.0005,30]
[377268094,1754309443874,-3000.0,0.0005,30]
[377268095,1754309443886,-3000.0,0.0005,30]
[377268096,1754309443896,-3000.0,0.0005,30]
[377268097,1754309443905,-3000.0,0.0005,30]
[377268098,1754309443915,-2557.38,0.0005,30]
[377268099,1754309443926,-162.12485,0.0005,10]
[377268100,1754309443936,-500.0,0.0005,120]
[377268101,1754309443946,-200.0,0.0005,15]
[377268102,1754309443956,-151.0,0.0005,30]
[377268103,1754309443967,-151.0,0.0005,30]
[377268104,1754309443976,-151.0,0.0005,30]
[377268105,1754309443986,-151.0,0.0005,30]
[377268106,1754309443996,-151.0,0.0005,30]
[377268107,1754309444006,-154.73384471,0.0005,30]
[377268108,1754309444015,-151.0,0.0005,30]
[377268109,1754309444025,-151.0,0.0005,30]
[377268110,1754309444035,-151.0,0.0005,30]
[377268111,1754309444045,-1213.0,0.0005,30]
[377268112,1754309444055,-1213.0,0.0005,30]
[377268113,1754309444065,-151.0,0.0005,30]
[377268114,1754309444074,-151.0,0.0005,30]
[377268115,1754309444083,-151.0,0.0005,30]
[377268116,1754309444093,-1213.0,0.0005,30]
[377268117,1754309444102,-151.0,0.0005,30]
[377268118,1754309444112,-151.0,0.0005,30]
[377268119,1754309444122,-151.0,0.0005,30]